Cogmind - Beta 9.6 @@@ ROGUE MODE // 2020.06.07 @ 18:21:17 Player: RNGesus Result: Self-destructed Performance ------------- Evolutions (3) 1500 Regions Visited (10) 2000 Robots Destroyed (122) 610 Value Destroyed (2995) 2995 Prototype IDs (32) 640 Alien Tech Used (0) 0 Bonus (324) 324 TOTAL SCORE: 8069 Bonus ------- High Alert Combat Kills 24 Aligned with FarCom 300 Cogmind --------- Core Integrity 596/700 Matter 213/300 Energy 160/160 System Corruption 1% Temperature Cool (0) Movement Flying (102) Ox1 Location -7/Lower Caves Parts ------- > --- POWER (1) -------- Light Nuclear Core > --- PROPULSION (3) --- Improved Flight Unit Improved Flight Unit > --- UTILITY (7) ------ Medium Storage Unit Long-range Sensor Array Advanced Signal Interpreter Hacking Suite Makeshift Hacking Suite Makeshift Hacking Suite Makeshift System Shield > --- WEAPON (2) ------- (None) > --- INVENTORY (8) ---- Light Nuclear Core Improved Flight Unit Long-range Sensor Array System Backup Module Missile Launcher Katana Master Tearclaws Peak State ------------ > --- POWER ------------ Light Nuclear Core > --- PROPULSION ------- Improved Flight Unit Improved Flight Unit Improved Flight Unit > --- UTILITY ---------- Medium Storage Unit Long-range Sensor Array Advanced Signal Interpreter Hacking Suite Makeshift Hacking Suite Makeshift Hacking Suite Makeshift System Shield > --- WEAPON ----------- Master Tearclaws > --- INVENTORY -------- Light Nuclear Core Improved Flight Unit Long-range Sensor Array System Backup Module Missile Launcher Katana [Rating: 51] Favorites ----------- Power Light Nuclear Core Engine Light Ion Engine Power Core Light Nuclear Core Propulsion Improved Treads Treads Improved Treads Leg Aluminum Leg Wheel Wheel Flight Unit Improved Flight Unit Utility Large Storage Unit Device Improved Heat Sink Storage Large Storage Unit Processor Advanced Signal Interpreter Hackware Hacking Suite Protection Light Armor Plating Weapon Improved Assault Rifle Energy Gun Small Laser Energy Cannon Advanced Beam Cannon Ballistic Gun Improved Assault Rifle Ballistic Cannon Light Cannon Launcher Rocket Launcher Slashing Weapon Katana Special Melee Weapon Improved Datajack Build | -11 -10 -10 -9 -9 -9 -8 -8 -7 -7 -7 ------- Run | Scr Mat Min Mat Min Exi Min Mat Fac Low Low Slots Evolved 6 | . . . 2 . . . 2 2 . . Power . | . . . . . . . . . . . Propulsion 1 | . . . 1 . . . . . . . Utility 5 | . . . 1 . . . 2 2 . . Weapon . | . . . . . . . . . . . Parts Attached 106 | 7 14 3 21 2 2 13 18 14 2 10 Power 12 | 2 1 . 1 1 . 1 3 3 . . Engine 6 | 2 1 . 1 . . . 1 1 . . Core 6 | . . . . 1 . 1 2 2 . . Reactor . | . . . . . . . . . . . Propulsion 27 | 2 4 1 8 . 1 5 2 3 1 . Treads 5 | . . . 4 . . 1 . . . . Leg 13 | 2 4 1 2 . . 2 2 . . . Wheel 3 | . . . . . 1 2 . . . . Hover . | . . . . . . . . . . . Flight 6 | . . . 2 . . . . 3 1 . Utility 24 | 1 4 . 2 1 . 1 4 6 1 4 Device 7 | . . . 1 1 . 1 2 1 . 1 Storage 6 | 1 4 . . . . . . 1 . . Processor 1 | . . . . . . . 1 . . . Hackware 7 | . . . . . . . . 4 1 2 Protection 3 | . . . 1 . . . 1 . . 1 Artifact . | . . . . . . . . . . . Weapon 43 | 2 5 2 10 . 1 6 9 2 . 6 Energy Gun 7 | 2 3 1 1 . . . . . . . Energy Cannon 7 | . . . 1 . . 3 3 . . . Ballistic Gun 13 | . 2 1 5 . . 2 3 . . . Ballistic Cannon 2 | . . . 2 . . . . . . . Launcher 8 | . . . 1 . 1 1 2 . . 3 Special Weapon . | . . . . . . . . . . . Impact Weapon . | . . . . . . . . . . . Slashing Weapon 5 | . . . . . . . 1 1 . 3 Piercing Weapon . | . . . . . . . . . . . Special Melee Weapon 1 | . . . . . . . . 1 . . Unidentified Prototypes 6 | . . . 4 . . . 1 1 . . Parts Lost 24 | . 5 1 1 1 . 4 12 . . . Power 5 | . 1 . . . . 1 3 . . . Propulsion 5 | . . . . . . 2 3 . . . Utility 4 | . . . 1 1 . . 2 . . . Weapon 10 | . 4 1 . . . 1 4 . . . Highest Loss Streak 4 | . 2 1 1 1 . 3 4 . . . Average Slot Usage (%) 96 | . 98 99 97 99 100 97 88 92 100 87 Engine 7 | . 13 14 11 8 . . . . . . Core 3 | . . . . 1 11 10 7 7 7 7 Treads 11 | . . . 21 33 32 18 5 . . . Leg 13 | . 28 28 11 . . 2 19 . . . Flight 2 | . . . . . . . . 22 23 20 Device 5 | . . . 7 2 11 11 14 7 7 7 Storage 21 | . 26 28 22 22 22 22 18 7 7 7 Processor 1 | . . . . . . . 4 7 7 7 Hackware 3 | . . . . . . . . 29 30 30 Protection 1 | . . . 1 8 . . 1 . . . Energy Gun 5 | . 18 10 1 . . . . . . . Energy Cannon 2 | . . . . . . 5 13 . . . Ballistic Gun 12 | . 9 17 17 22 19 15 2 . . . Naked Turns . | . . . . . . . . . . . Heaviest Build 57 | 13 37 37 48 48 45 46 57 18 18 23 Greatest Support 69 | 20 20 25 69 69 69 69 45 18 18 18 Greatest Overweight (x) 4 | . 1 1 1 . 4 4 1 . . 1 Average Overweight (x) . | . . 1 . . . 2 . . . . Largest Inventory Capacity 20 | 6 16 16 16 16 16 16 16 20 8 8 Average Capacity 14 | 4 13 16 16 16 16 16 16 8 8 8 Most Carried 16 | 2 12 16 16 16 16 16 16 15 8 8 Average Carried 12 | 1 6 12 15 16 15 15 15 7 7 7 Final Capacity 16 | 6 16 16 16 16 16 16 16 8 8 8 Final Carried 16 | 2 10 14 16 16 16 16 14 8 8 8 Class Distribution -------------------- 66% | Mutant 21% | Scavenger-Mutant 11% | Hacker-Sprinter Dominant Class ---------------- Mutant | -10/Materials Mutant | -10/Mines Mutant | -9/Materials Mutant | -9/Mines Mutant | -9/Exiles Mutant | -8/Mines Scavenger-Mutant | -8/Materials Hacker-Sprinter | -7/Factory Hacker-Sprinter | -7/Lower Caves Hacker-Sprinter | -7/Lower Caves Resources | -11 -10 -10 -9 -9 -9 -8 -8 -7 -7 -7 ----------- Run | Scr Mat Min Mat Min Exi Min Mat Fac Low Low Matter Collected 2162 | 199 251 77 676 142 . 316 199 199 15 88 Remotely . | . . . . . . . . . . . Salvage Created 3818 | . 651 268 1098 293 . 419 910 76 . 103 Parts 255 | . 57 11 91 15 . 19 45 6 . 11 Haulers Intercepted 12 | . 2 . 6 . . . 3 1 . . Recyclers Shooed 7 | . . 4 . . . . 3 . . . Parts Field Recycled . | . . . . . . . . . . . Retrieved Matter . | . . . . . . . . . . . Parts Self-Destructed 7 | . . . . . . . . . . 7 Prevented 2 | . . . . . . . . . . 2 Kills | -11 -10 -10 -9 -9 -9 -8 -8 -7 -7 -7 ------- Run | Scr Mat Min Mat Min Exi Min Mat Fac Low Low Combat Hostiles Destroyed 87 | . 14 5 26 7 . 10 17 . . 8 Melee 3 | . . . . . . . 3 . . . Guns 44 | . 13 5 11 7 . 4 4 . . . Cannons 20 | . . . 11 . . 3 6 . . . AOE 20 | . 1 . 4 . . 3 4 . . 8 Classes Destroyed 12 | . 6 1 3 . . 1 1 . . . Worker 5 | . 2 1 1 . . . 1 . . . Builder 2 | . . . 1 . . . 1 . . . Tunneler 3 | . . . 2 . . 1 . . . . Hauler 12 | . 2 . 6 . . . 3 1 . . Recycler 2 | . . 2 . . . . . . . . Operator 5 | . 3 . 2 . . . . . . . Watcher 6 | . 2 . 2 . . . 1 1 . . Swarmer 33 | . 6 3 10 . . 3 3 . . 8 Grunt 42 | . 8 2 11 7 . 6 8 . . . Duelist 1 | . . . . . . . 1 . . . Sentry 9 | . . . 5 . . . 4 . . . Hunter 2 | . . . . . . 1 1 . . . Best Kill Streak 14 | . 8 2 14 3 . 3 4 1 . 4 Combat Bots Only 9 | . 6 1 9 3 . 3 4 . . 4 Max Kills in Single Turn 4 | . 3 1 3 1 . 2 1 1 . 4 Gunslinging . | . . . . . . . . . . . Exploded 4 | . 1 . 2 . . 2 1 . . 4 Melee 1 | . . . . . . . 1 . . . Uniques/NPCs Destroyed . | . . . . . . . . . . . Combat | -11 -10 -10 -9 -9 -9 -8 -8 -7 -7 -7 -------- Run | Scr Mat Min Mat Min Exi Min Mat Fac Low Low Damage Taken 4201 | . 715 269 851 263 . 511 1247 36 216 93 Core 749 | . 156 53 82 46 . 44 264 19 79 6 Absorbed by Shields . | . . . . . . . . . . . Core Remaining (%) 56 | 100 . 16 . . . 57 52 . . . Volleys Fired 321 | . 81 41 75 19 4 32 64 . . 5 Largest 2 | . 2 2 2 2 1 2 2 . . 1 Hottest 136 | . 100 60 70 46 33 136 136 . . 36 Shots Fired 597 | . 157 77 146 38 4 56 114 . . 5 Gun 436 | . 157 77 101 38 . 40 23 . . . Cannon 143 | . . . 42 . . 14 87 . . . Launcher 18 | . . . 3 . 4 2 4 . . 5 Special . | . . . . . . . . . . . Kinetic 351 | . 59 52 139 38 . 40 23 . . . Thermal 207 | . 77 25 4 . . 14 87 . . . Explosive 18 | . . . 3 . 4 2 4 . . 5 Electromagnetic 21 | . 21 . . . . . . . . . Robot Hit Streak 25 | . 9 10 25 18 . 13 17 . . 1 Robot Miss Streak 6 | . 6 3 6 1 . 3 3 . . 2 Penetration Max . | . . . . . . . . . . . Secondary Targets 5 | . . 1 1 3 . . . . . . Max Gunslinging Chain 1 | . . 1 1 1 . . . . . . Shots Hit Robots 408 | . 87 48 100 33 . 43 82 13 . 2 Core Hits 187 | . 39 17 52 10 . 20 37 2 . 10 Critical Hits 13 | . . . 1 1 . 2 9 . . . Critical Kills 5 | . . . 1 1 . 1 2 . . . Critical Parts Destroyed 8 | . . . . . . 1 7 . . . Melee Attacks 60 | . . . . . . . 14 41 . 5 Impact . | . . . . . . . . . . . Slashing 59 | . . . . . . . 14 40 . 5 Piercing . | . . . . . . . . . . . Sneak Attacks 2 | . . . . . . . 1 1 . . Combat Hostiles . | . . . . . . . . . . . Follow-up Attacks . | . . . . . . . . . . . Damage Inflicted 7678 | . 950 405 1775 455 . 871 2075 546 . 601 Guns 3449 | . 870 405 1036 455 . 444 239 . . . Cannons 1918 | . . . 523 . . 224 1171 . . . Explosions 1335 | . 80 . 216 . . 203 271 . . 565 Melee 963 | . . . . . . . 381 546 . 36 Ramming 13 | . . . . . . . 13 . . . Kinetic 3088 | . 197 215 1538 455 . 444 239 . . . Thermal 2246 | . 640 190 21 . . 224 1171 . . . Explosive 1255 | . . . 216 . . 203 271 . . 565 Electromagnetic 113 | . 113 . . . . . . . . . Impact . | . . . . . . . . . . . Slashing 963 | . . . . . . . 381 546 . 36 Piercing . | . . . . . . . . . . . Highest Corruption 1 | . . . . . . . . . 1 1 Average Corruption 1 | . . . . . . . . . 1 1 Corruption Purged . | . . . . . . . . . . . Effects 3 | . . . . . . . . . . 3 Message Errors 2 | . . . . . . . . . . 2 Data Loss (minor) 1 | . . . . . . . . . . 1 Overload Shots . | . . . . . . . . . . . Overflow Damage 140 | . . . . . . 8 . 64 . 68 Projectiles . | . . . . . . . . . . . Explosions 76 | . . . . . . 8 . . . 68 Melee 64 | . . . . . . . . 64 . . Knockbacks . | . . . . . . . . . . . Impact . | . . . . . . . . . . . Kinetic . | . . . . . . . . . . . Secondary . | . . . . . . . . . . . Self-Inflicted Damage 71 | . 38 . . . . 14 19 . . . Shots 3 | . 1 . . . . 1 1 . . . Rammed . | . . . . . . . . . . . Targets Rammed 1 | . . . . . . . 1 . . . Kicked 1 | . . . . . . . 1 . . . Crushed . | . . . . . . . . . . . Highest Temperature 351 | . 351 129 14 18 . 144 53 . 3 . Average Temperature 69 | . 91 44 8 7 . 75 14 . 3 . Received Heat Transfer 1449 | . 237 75 294 147 . 162 504 12 18 . Effects 1 | . 1 . . . . . . . . . Shutdowns 1 | . 1 . . . . . . . . . Siege Activations . | . . . . . . . . . . . Robots Corrupted . | . . . . . . . . . . . Combat Hostiles . | . . . . . . . . . . . Parts Fried . | . . . . . . . . . . . Impact Corruptions . | . . . . . . . . . . . Robots Melted . | . . . . . . . . . . . Combat Hostiles . | . . . . . . . . . . . Parts Melted 9 | . . . . . . . 9 . . . Heat Transferred 4502 | . 1511 425 50 . . 407 2109 . . . Parts Sabotaged . | . . . . . . . . . . . Parts Stolen 2 | . . . . . . . . . . 2 Parts Stripped . | . . . . . . . . . . . Power Chain Reactions 1 | . 1 . . . . . . . . . Missiles Intercepted . | . . . . . . . . . . . Alert | -11 -10 -10 -9 -9 -9 -8 -8 -7 -7 -7 ------- Run | Scr Mat Min Mat Min Exi Min Mat Fac Low Low Peak Influence 499 | . 252 75 499 314 . 153 212 213 . . Average Influence 131 | . 123 25 266 188 . 81 89 117 . . Maximum Alert Level 2 | . 1 . 2 1 . . 1 1 . . Low Security (%) 74 | 100 78 100 31 53 . 100 96 70 . . Level 1 22 | . 21 . 50 46 . . 3 29 . . Level 2 3 | . . . 17 . . . . . . . Level 3 . | . . . . . . . . . . . Level 4 . | . . . . . . . . . . . Level 5 . | . . . . . . . . . . . High Security . | . . . . . . . . . . . Max Security . | . . . . . . . . . . . Squads Dispatched 13 | . 4 . 3 1 . . 4 1 . . Investigation 4 | . 1 . 1 1 . . . 1 . . Extermination . | . . . . . . . . . . . Reinforcement 6 | . 3 . 2 . . . 1 . . . Assault . | . . . . . . . . . . . Garrison 3 | . . . . . . . 3 . . . Intercept . | . . . . . . . . . . . Construction Impeded . | . . . . . . . . . . . Haulers Reinforced . | . . . . . . . . . . . Stealth | -11 -10 -10 -9 -9 -9 -8 -8 -7 -7 -7 --------- Run | Scr Mat Min Mat Min Exi Min Mat Fac Low Low Distress Signals 6 | . 2 . 2 . . . 2 . . . Communications Jammed . | . . . . . . . . . . . Distress Signals . | . . . . . . . . . . . Times Spotted 158 | . 35 8 40 10 . 10 26 7 12 10 Peak Tracking Total 13 | . 4 3 6 3 9 3 6 3 13 4 Tactical Retreats 12 | . 2 1 2 1 . . 3 1 2 . Traps | -11 -10 -10 -9 -9 -9 -8 -8 -7 -7 -7 ------- Run | Scr Mat Min Mat Min Exi Min Mat Fac Low Low Traps Triggered 2 | . . . . . . . . 2 . . Indirectly . | . . . . . . . . . . . Trap Hack Attempts . | . . . . . . . . . . . Triggered . | . . . . . . . . . . . Disarmed . | . . . . . . . . . . . Reprogrammed . | . . . . . . . . . . . Reused . | . . . . . . . . . . . Traps Extracted . | . . . . . . . . . . . Installed . | . . . . . . . . . . . Triggered 2 | . . . . . . . . . . 2 Machines | -11 -10 -10 -9 -9 -9 -8 -8 -7 -7 -7 ---------- Run | Scr Mat Min Mat Min Exi Min Mat Fac Low Low Machines Disabled 8 | . . . 1 . 5 . 1 1 . . Max in Single Turn 2 | . . . 1 . 2 . 1 1 . . Machines Sabotaged . | . . . . . . . . . . . Garrisons Compromised . | . . . . . . . . . . . Overloaded Fab Kills . | . . . . . . . . . . . Fab Network Shutdowns . | . . . . . . . . . . . Hacking | -11 -10 -10 -9 -9 -9 -8 -8 -7 -7 -7 --------- Run | Scr Mat Min Mat Min Exi Min Mat Fac Low Low Machines Accessed 20 | . 3 1 4 1 1 . 1 9 . . Terminals 14 | . 2 1 3 . . . 1 7 . . Fabricators 2 | . . . . . . . . 2 . . Repair Stations . | . . . . . . . . . . . Recycling Units 1 | . 1 . . . . . . . . . Scanalyzers 1 | . . . 1 . . . . . . . Garrison Access . | . . . . . . . . . . . Total Hacks 49 | . 5 1 10 1 1 . 1 30 . . Successful 38 | . 3 1 7 1 1 . 1 24 . . Failed 11 | . 2 . 3 . . . . 6 . . Catastrophic 1 | . . . 1 . . . . . . . Database Lockouts . | . . . . . . . . . . . Manual 31 | . 4 1 5 . 1 . 1 19 . . Terminals 32 | . 3 1 6 . . . 1 21 . . Fabricators 9 | . . . . . . . . 9 . . Repair Stations . | . . . . . . . . . . . Recycling Units 2 | . 2 . . . . . . . . . Scanalyzers 4 | . . . 4 . . . . . . . Garrison Access . | . . . . . . . . . . . Terminal Hacks 20 | . 1 1 2 1 1 . 1 13 . . Record 1 | . . . 1 . . . . . . . Part Schematic 6 | . . 1 . . . . 1 4 . . Prototype ID Bank 2 | . . . . . . . . 2 . . Open Door 1 | . . . . 1 . . . . . . Branch Access Points 2 | . . . 1 . . . . 1 . . Terminal Index 2 | . 1 . . . . . . 1 . . Fabricator Index 1 | . . . . . . . . 1 . . Hauler Manifests 1 | . . . . . . . . 1 . . Registered Components 1 | . . . . . . . . 1 . . Registered Prototypes 1 | . . . . . . . . 1 . . Zone Layout 1 | . . . . . . . . 1 . . EX-Prototype ID Bank 1 | . . . . . 1 . . . . . Fabricator Hacks 7 | . . . . . . . . 7 . . Load Schematic 3 | . . . . . . . . 3 . . Build 4 | . . . . . . . . 4 . . Repair Station Hacks . | . . . . . . . . . . . Recycling Unit Hacks . | . . . . . . . . . . . Scanalyzer 4 | . . . 4 . . . . . . . Insert Component 2 | . . . 2 . . . . . . . Analyze 2 | . . . 2 . . . . . . . Garrison Access Hacks . | . . . . . . . . . . . Unauthorized Hacks 7 | . 2 . 1 . . . . 4 . . Terminals 5 | . 1 . 1 . . . . 3 . . Track 1 | . . . . . . . . 1 . . Assimilate 1 | . . . . . . . . 1 . . Operators 3 | . 1 . 1 . . . . 1 . . Fabricators 1 | . . . . . . . . 1 . . Prioritize 1 | . . . . . . . . 1 . . Repair Stations . | . . . . . . . . . . . Recycling Units 1 | . 1 . . . . . . . . . Tunnel 1 | . 1 . . . . . . . . . Scanalyzers . | . . . . . . . . . . . Garrison Access . | . . . . . . . . . . . Data Cores Recovered . | . . . . . . . . . . . Used . | . . . . . . . . . . . Hacking Detections 11 | . 3 . 2 . . . . 6 . . Full Trace Events 1 | . . . 1 . . . . . . . Feedback Events . | . . . . . . . . . . . Feedback Blocked . | . . . . . . . . . . . Robot Schematics Acquired . | . . . . . . . . . . . Robots Built . | . . . . . . . . . . . Matter . | . . . . . . . . . . . Time . | . . . . . . . . . . . Total Robot Build Rating . | . . . . . . . . . . . Part Schematics Acquired 8 | . . 1 2 . . . 1 4 . . Parts Built 3 | . . . . . . . . 3 . . Matter 522 | . . . . . . . . 522 . . Time 155 | . . . . . . . . 155 . . Total Part Build Rating 10 | . . . . . . . . 10 . . Parts Repaired . | . . . . . . . . . . . Time . | . . . . . . . . . . . Parts Recycled . | . . . . . . . . . . . Recycled Matter . | . . . . . . . . . . . Retrieved Matter . | . . . . . . . . . . . Retrieved Components . | . . . . . . . . . . . Parts Scanalyzed 2 | . . . 2 . . . . . . . Part Schematics Acquired 2 | . . . 2 . . . . . . . Parts Damaged . | . . . . . . . . . . . Bothacking | -11 -10 -10 -9 -9 -9 -8 -8 -7 -7 -7 ------------ Run | Scr Mat Min Mat Min Exi Min Mat Fac Low Low Used RIF Installer . | . . . . . . . . . . . Robots Hacked . | . . . . . . . . . . . Non-combat . | . . . . . . . . . . . Combat . | . . . . . . . . . . . Robot Hacks Applied . | . . . . . . . . . . . Relay Couplers Released . | . . . . . . . . . . . Robots Rewired . | . . . . . . . . . . . Allies Hacked . | . . . . . . . . . . . Hacks Repelled . | . . . . . . . . . . . Allies | -11 -10 -10 -9 -9 -9 -8 -8 -7 -7 -7 -------- Run | Scr Mat Min Mat Min Exi Min Mat Fac Low Low Total Allies 4 | . . . . 3 . . . 1 . . Largest Group 3 | . . . . 3 . . . 1 1 . Highest-Rated Group 40 | . . . . 40 . . . 10 10 . Highest-Rated Ally 16 | . . . . 16 . . . 10 10 . Total Orders . | . . . . . . . . . . . Ally Attacks 9 | . . . . 9 . . . . . . Total Damage 66 | . . . . 66 . . . . . . Kills . | . . . . . . . . . . . Allies Corrupted . | . . . . . . . . . . . Allies Melted . | . . . . . . . . . . . Intel | -11 -10 -10 -9 -9 -9 -8 -8 -7 -7 -7 ------- Run | Scr Mat Min Mat Min Exi Min Mat Fac Low Low Robot Analysis Total . | . . . . . . . . . . . Derelict Logs Recovered 7 | . . 3 . 3 . . . . 1 . Drone Launches . | . . . . . . . . . . . Drone Recoveries . | . . . . . . . . . . . Exploration | -11 -10 -10 -9 -9 -9 -8 -8 -7 -7 -7 ------------- Run | Scr Mat Min Mat Min Exi Min Mat Fac Low Low Turns Passed 6651 | 54 1249 901 1042 742 421 520 866 449 103 304 Spaces Moved 4765 | 40 654 523 483 412 260 319 401 803 328 542 Core 8 | 8 . . . . . . . . . . Treads 999 | . . . 313 412 243 31 . . . . Legs 1812 | 32 654 523 170 . . 32 401 . . . Wheels 273 | . . . . . 17 256 . . . . Hover . | . . . . . . . . . . . Flight 1673 | . . . . . . . . 803 328 542 Fastest Speed 29 | 50 120 150 120 160 120 100 120 29 29 29 Average Speed 107 | 106 147 150 150 160 157 121 146 29 29 40 Slowest Speed 210 | 120 150 150 180 160 160 210 150 29 29 102 Overloaded Moves . | . . . . . . . . . . . Propulsion Burnouts . | . . . . . . . . . . . Robots Hopped 4 | . . . . . . . . 3 1 . Cave-ins Triggered . | . . . . . . . . . . . Exploration Rate (%) 61 | 5 92 97 56 86 61 68 48 24 62 72 Regions Visited 10 Branch Regions 6 Pre-discovered Areas 2 | . 1 1 . . . . . . . . Known Exits Taken 5 | . . . 1 1 . . 1 1 1 . Unknown Exits Taken 5 | 1 1 1 . . 1 1 . . . . Scrap Searched 18 | . . 1 . 1 . 1 . . 6 9 Spaces Dug 81 | . . . . . . 20 10 21 . 30 Terrain Destroyed 177 | . 3 . 21 . 30 20 29 21 . 53 Melee 24 | . . . . . . . . 21 . 3 Projectile 2 | . . . . . . . 2 . . . AOE 151 | . 3 . 21 . 30 20 27 . . 50 Actions | -11 -10 -10 -9 -9 -9 -8 -8 -7 -7 -7 --------- Run | Scr Mat Min Mat Min Exi Min Mat Fac Low Low Total 5651 | 48 791 573 659 459 267 395 545 962 334 618 Wait 242 | 1 28 2 23 22 . 21 37 66 3 39 Move 4747 | 39 653 522 482 411 259 318 400 796 325 542 Hop 4 | . . . . . . . . 3 1 . Pick Up 69 | 1 11 4 27 2 1 5 5 8 1 4 Fast Attach 33 | 6 1 . 8 2 . 3 9 1 . 3 Attach 33 | . 5 2 4 . . 3 5 10 . 4 Detach 13 | . . 1 . . . 1 2 4 . 5 Swap 40 | 1 8 1 9 . 2 7 4 3 2 3 Drop 70 | . 4 . 31 3 1 5 4 12 2 8 Fire 321 | . 81 41 75 19 4 32 64 . . 5 Melee 60 | . . . . . . . 14 41 . 5 Ram . | . . . . . . . . . . . Kick 1 | . . . . . . . 1 . . . Crush . | . . . . . . . . . . . Escape Stasis 18 | . . . . . . . . 18 . . Rewire . | . . . . . . . . . . . Trap . | . . . . . . . . . . . Miscellaneous . | . . . . . . . . . . . Route ------- -11/Scrapyard -10/Materials (discovered 5 exits: *Mat x3 / *Min x2) -10/Mines (discovered 2 exits: *Mat x2) -9/Materials (discovered 3 exits: *Mat / *Min x2) -9/Mines (discovered 3 exits: *Mat x2 / *Exi) -9/Exiles (discovered 2 exits: [*Min x2]) -8/Mines (discovered 2 exits: *Mat x2) -8/Materials -7/Factory (discovered 4 exits: *Fac x2 / *Low x2) -7/Lower Caves -7/Lower Caves (discovered 2 exits: *Fac / [*Zio]) History --------- Turn | Location | Event 12 | -11/Scrapyard | Discovered new exit (range 15) 55 | -11/Scrapyard | Entered Materials 333 | -10/Materials | Build established: Mutant 370 | -10/Materials | Discovered new exit (range 3) 379 | -10/Materials | Discovered new exit (range 15) 578 | -10/Materials | Core integrity fell below 50% 667 | -10/Materials | Discovered new exit (range 9) 831 | -10/Materials | Discovered new exit (range 11) 1279 | -10/Materials | Discovered new exit (range 16) 1304 | -10/Materials | Entered Mines 1309 | -10/Mines | Met a Derelict bent on vengeance 1340 | -10/Mines | Learned Materials security intel 1436 | -10/Mines | Learned Materials security intel 1489 | -10/Mines | Learned location of Storage (-8) 2041 | -10/Mines | Discovered new exit (range 12) 2155 | -10/Mines | Discovered new exit (range 10) 2188 | -10/Mines | Core integrity fell below 20% 2205 | -10/Mines | Entered Materials 2205 | -9/Materials | Evolved 2 slots: Propulsion x1, Utility x1 2265 | -9/Materials | Build established: Scavenger-Mutant 2696 | -9/Materials | Discovered new exit (range 15) 2735 | -9/Materials | Identified exit to Mines 2863 | -9/Materials | Build established: Mutant 3089 | -9/Materials | Destroyed 9 combat bots 3247 | -9/Materials | Entered Mines 3351 | -9/Mines | Discovered new exit (range 8) 3372 | -9/Mines | Learned Materials trap positions 3487 | -9/Mines | Met a Derelict shopkeep closing up shop 3603 | -9/Mines | Identified exit to Exiles 3663 | -9/Mines | Learned Materials interactive machine intel 3663 | -9/Mines | Assisted by bots powering up and referring to "LRC-V3" 3731 | -9/Mines | Discovered new exit (range 9) 3790 | -9/Mines | Received a Rocket Launcher from a helpful Derelict 3981 | -9/Mines | Deemed a non-threat by the Exiles lab entrance 3989 | -9/Mines | Entered Exiles 4015 | -9/Exiles | Discovered new exit (range 15) 4034 | -9/Exiles | Met 8R-AWN 4060 | -9/Exiles | Met EX-HEX 4105 | -9/Exiles | Met EX-BIN 4124 | -9/Exiles | Aligned with FarCom system 4125 | -9/Exiles | Given EX-Vault access code 4165 | -9/Exiles | Opened EX-Vault 4176 | -9/Exiles | Found Cloak of Protection 4209 | -9/Exiles | Warned to stay clear of 0b10 Research branches 4253 | -9/Exiles | Met EX-DEC 4311 | -9/Exiles | Discovered new exit (range 11) 4379 | -9/Exiles | Attacked by the Exiles 4410 | -9/Exiles | Left Exiles lab with Cloak of Protection 4410 | -9/Exiles | Entered Mines 4531 | -8/Mines | Discovered new exit (range 11) 4639 | -8/Mines | Discovered new exit (range 13) 4748 | -8/Mines | Lost 3 parts (1p1n1w) 4930 | -8/Mines | Entered Materials 4930 | -8/Materials | Evolved 2 slots: Utility x2 4931 | -8/Materials | Loaded intel: 25 trap records 4933 | -8/Materials | Loaded intel: 19 interactive machine locations 5192 | -8/Materials | Build established: Scavenger-Mutant 5566 | -8/Materials | Garrison activated, responded to threat 5619 | -8/Materials | Lost 4 parts (1p1u2w) 5726 | -8/Materials | Lost 3 parts (1n1u1w) 5768 | -8/Materials | Discovered new exit (range 6) 5793 | -8/Materials | Identified exit to Factory 5796 | -8/Materials | Entered Factory 5796 | -7/Factory | Evolved 2 slots: Utility x2 5935 | -7/Factory | Identified exit to Lower Caves 6010 | -7/Factory | Discovered new exit (range 12) 6013 | -7/Factory | Identified exit to Factory 6058 | -7/Factory | Fabricated Lrn. Sensor Array (x1) 6088 | -7/Factory | Fabricated Lrn. Sensor Array? 6098 | -7/Factory | Build established: Hacker-Sprinter 6106 | -7/Factory | Discovered exit to Factory (range 10) 6176 | -7/Factory | Fabricated Imp. Flight Unit (x1) 6245 | -7/Factory | Entered Lower Caves 6245 | -7/Lower Caves | Accompanied by 1 ally 6293 | -7/Lower Caves | Learned location of 2 exits from Factory 6294 | -7/Lower Caves | Spotted CB-LIE(f) 6295 | -7/Lower Caves | Encountered a Master Thief 6346 | -7/Lower Caves | Discovered new exit (range 8) 6348 | -7/Lower Caves | Identified exit to Lower Caves 6348 | -7/Lower Caves | Entered another Lower Caves area 6369 | -7/Lower Caves | Encountered a Warlord checkpoint 6369 | -7/Lower Caves | Discovered exit to Factory (range 12) 6550 | -7/Lower Caves | Encountered a Master Thief 6550 | -7/Lower Caves | Cloak of Protection stolen by Master Thief 6551 | -7/Lower Caves | Spotted GU-ZMW(f) 6552 | -7/Lower Caves | Encountered a Master Thief 6559 | -7/Lower Caves | Imp. Flight Unit stolen by Master Thief 6636 | -7/Lower Caves | Discovered new exit (range 11) 6652 | -7/Lower Caves | Self-destructed Last Messages --------------- 06531_ Found Mace. 06531_ Found Adv. Terrain Scan Processor. 06531_ Found Lrg. Matter Pod. 06531_ Searching scrap... 06531_ Found 40 Matter. 06531_ Found Gauss Cannon. 06531_ Found Mining Claw. 06531_ Found Reclamation Unit. 06531_ Searching scrap... 06531_ Found 37 Matter. 06531_ Found Carbon-fiber Leg. 06531_ Found Imp. Trap Extractor. 06532_ Acquired 37 matter. 06532_ Searching scrap... 06532_ Found 41 Matter. 06532_ Found Spear. 06550_ Cloak of Protection stolen. 06551_ Z/DPV1I1ZDJM